Workbook

Sheet Settings Tabel for MRFH
A1: Calculation Sheet for Bucket Humidifier
A2: Chris Callahan, March 4, 2014 (chris.callahan@uvm.edu)
A3: Source: http://blog.uvm.edu/cwcallah
A4: Anything in blue is an input you can adjust. The main ones are outlined. Other cells are calculated and have been locked from editing.
A5: If you run into problems with the solver routine, reference this page: http://peltiertech.com/Excel/SolverVBA.html
C7: Solving for RH when you know Tdb and Twb | I7: Solving for Twb when you know Tdb and RH
C9: Case 1 | D9: Case 2 | E9: Case 3 | F9: Case 4 | G9: Case 5 | I9: Case 6
A10: Room Temp(DB) | B10: degF | C10: 35 | D10: 35 | E10: 35 | F10: 35 | G10: 35 | I10: 35
A11: Room Temp(WB) | B11: degF | C11: 34.24 | D11: 34.46 | E11: 34.78 | F11: 34.89 | G11: 34.95 | I11: 26.95130136
A12: Room RH | B12: % | C12: =C55 -> 0.9302350804 | D12: =D55 -> 0.9503457259 | E12: =E55 -> 0.9797201689 | F12: =F55 -> 0.9898514014 | G12: =G55 -> 0.9953848443 | I12: 0.3 | J12: =IF(I56>0.001, "click Solve", "") -> 
A13: Water Temp | B13: degF | C13: 100 | D13: 100 | E13: 100 | F13: 100 | G13: 100 | I13: 100
A14: Air Flow from Fan | B14: CFM | C14: 30 | D14: 30 | E14: 30 | F14: 30 | G14: 30 | I14: 30
A15: Bucket Diameter | B15: inch | C15: 12 | D15: 12 | E15: 12 | F15: 12 | G15: 12 | I15: 12
A16: Free Height / Air Space | B16: inch | C16: 3 | D16: 3 | E16: 3 | F16: 3 | G16: 3 | I16: 3
A17: Humid. Rate | B17: gal/24 hr | C17: =C35 -> 0.8768801189 | D17: 0.8749440933 | E17: 0.8721152957 | F17: 0.8711393806 | G17: 0.8706063014 | I17: =I35 -> 0.9372831563
A19: Calculation of Evaporation from a Water Surface
A20: xs | C20: =C70 -> 0.04300121156 | D20: 0.04300121156 | E20: 0.04300121156 | F20: 0.04300121156 | G20: 0.04300121156 | I20: =I70 -> 0.04300121156
A21: x | C21: =C51 -> 0.003961231419 | D21: 0.004047426097 | E21: 0.004173368288 | F21: 0.004216817447 | G21: 0.004240550911 | I21: =I51 -> 0.001272000212
A22: Diameter | B22: in | C22: =C15 -> 12 | D22: =D15 -> 12 | E22: 12 | F22: 12 | G22: 12 | I22: =I15 -> 12
A23: Free Height | B23: in | C23: =C16 -> 3 | D23: =D16 -> 3 | E23: 3 | F23: 3 | G23: 3 | I23: =I16 -> 3
A24: Surface Area | B24: in2 | C24: =3.14*C22^2/4 -> 113.04 | D24: 113.04 | E24: 113.04 | F24: 113.04 | G24: 113.04 | I24: =3.14*I22^2/4 -> 113.04
B25: ft2 | C25: =C24/144 -> 0.785 | D25: 0.785 | E25: 0.785 | F25: 0.785 | G25: 0.785 | I25: =I24/144 -> 0.785
B26: m2 | C26: =C25/3.28/3.28 -> 0.07296624033 | D26: 0.07296624033 | E26: 0.07296624033 | F26: 0.07296624033 | G26: 0.07296624033 | I26: =I25/3.28/3.28 -> 0.07296624033
A27: Crosssectional Flow Area | B27: in2 | C27: =C22/2*C23 -> 18 | D27: 18 | E27: 18 | F27: 18 | G27: 18 | I27: =I22/2*I23 -> 18
A28: CFM (Air Flow) | B28: ft3/min | C28: =C14 -> 30 | D28: =D14 -> 30 | E28: 30 | F28: 30 | G28: 30 | I28: =I14 -> 30
A29: Air Velocity | B29: ft/s | C29: =C28/(C27/144)/60 -> 4 | D29: 4 | E29: 4 | F29: 4 | G29: 4 | I29: =I28/(I27/144)/60 -> 4
B30: m/s | C30: =C29/3.28 -> 1.219512195 | D30: 1.219512195 | E30: 1.219512195 | F30: 1.219512195 | G30: 1.219512195 | I30: =I29/3.28 -> 1.219512195
A31: phi (Evap calculation rate) | B31: kg/m2/h | C31: =25+19*C30 -> 48.17073171 | D31: 48.17073171 | E31: 48.17073171 | F31: 48.17073171 | G31: 48.17073171 | I31: =25+19*I30 -> 48.17073171
A33: gh (Evaporation rate) | B33: kg/h | C33: =C31*C26*(C20-C21) -> 0.137219174 | D33: 0.1369162137 | E33: 0.1364735474 | F33: 0.1363208307 | G33: 0.1362374114 | I33: =I31*I26*(I20-I21) -> 0.1466713838
B34: lb/hr | C34: =C33*2.21 -> 0.3032543744 | D34: 0.3025848323 | E34: 0.3016065398 | F34: 0.3012690358 | G34: 0.3010846792 | I34: =I33*2.21 -> 0.3241437582
B35: gal/24 hr | C35: =C34*24/8.3 -> 0.8768801189 | D35: 0.8749440933 | E35: 0.8721152957 | F35: 0.8711393806 | G35: 0.8706063014 | I35: =I34*24/8.3 -> 0.9372831563
A37: Air Properties (Moisture in Air, etc)
A38: Tdb - Dry Bulb | B38: degF | C38: =C10 -> 35 | D38: =D10 -> 35 | E38: =E10 -> 35 | F38: =F10 -> 35 | G38: =G10 -> 35 | I38: =I10 -> 35
B39: degR | C39: =+C38+459.67 -> 494.67 | D39: 494.67 | E39: 494.67 | F39: 494.67 | G39: 494.67 | I39: =+I38+459.67 -> 494.67
A40: Twb - Wet Bulb | B40: degF | C40: =C11 -> 34.24 | D40: =D11 -> 34.46 | E40: =E11 -> 34.78 | F40: =F11 -> 34.89 | G40: =G11 -> 34.95 | I40: =I11 -> 26.95130136
B41: degR | C41: =+C40+459.67 -> 493.91 | D41: 494.13 | E41: 494.45 | F41: 494.56 | G41: 494.62 | I41: =+I40+459.67 -> 486.6213014
A42: P - Pressure | B42: inHG | C42: 29.921 | D42: 29.921 | E42: 29.921 | F42: 29.921 | G42: 29.921 | I42: 29.921
B43: psia | C43: =C42*0.491154152227 -> 14.69582339 | D43: 14.69582339 | E43: 14.69582339 | F43: 14.69582339 | G43: 14.69582339 | I43: =I42*0.491154152227 -> 14.69582339
B44: Pa | C44: =C42*3386.38866667 -> 101324.1353 | D44: 101324.1353 | E44: 101324.1353 | F44: 101324.1353 | G44: 101324.1353 | I44: =I42*3386.38866667 -> 101324.1353
A46: Pdb | B46: psia | C46: =EXP((-1.0440397*10^4)/C39-1.129465*10-2.7022355*10^(-2)*C39 + 1.289036*10^(-5)*C39*C39 -2.4780681*10^(-9)*C39*C39*C39 + 6.5459673*LN(C39)) -> 0.09997648551 | D46: 0.09997648551 | E46: 0.09997648551 | F46: 0.09997648551 | G46: 0.09997648551 | I46: =EXP((-1.0440397*10^4)/I39-1.129465*10-2.7022355*10^(-2)*I39 + 1.289036*10^(-5)*I39*I39 -2.4780681*10^(-9)*I39*I39*I39 + 6.5459673*LN(I39)) -> 0.09997648551
A47: Pwb | B47: psia | C47: =EXP((-1.0440397*10^4)/C41 -1.129465*10-2.7022355*10^(-2)*C41 + 1.289036*10^(-5)*C41*C41 -2.4780681*10^(-9)*C41*C41*C41 + 6.5459673*LN(C41)) -> 0.09699180274 | D47: 0.09784756068 | E47: 0.09910424246 | F47: 0.09953951756 | G47: 0.09977765349 | I47: =EXP((-1.0440397*10^4)/I41 -1.129465*10-2.7022355*10^(-2)*I41 + 1.289036*10^(-5)*I41*I41 -2.4780681*10^(-9)*I41*I41*I41 + 6.5459673*LN(I41)) -> 0.07213588924
A49: Ws | B49: lb/lb | C49: =0.62198*(C46/(C43-C46)) -> 0.00426034713 | D49: 0.00426034713 | E49: 0.00426034713 | F49: 0.00426034713 | G49: 0.00426034713 | I49: =0.62198*(I46/(I43-I46)) -> 0.00426034713
A50: W* | B50: lb/lb | C50: =0.62198*(C47/(C43-C47)) -> 0.004132314364 | D50: 0.004169018123 | E50: 0.004222925447 | F50: 0.004241599415 | G50: 0.004251816283 | I50: =0.62198*(I47/(I43-I47)) -> 0.0030681099
A51: W | B51: lb/lb | C51: =((1093-0.556*C40)*C50 - 0.24*(C38-C40)) / (1093+0.444*C38-C40) -> 0.003961231419 | D51: 0.004047426097 | E51: 0.004173368288 | F51: 0.004216817447 | G51: 0.004240550911 | I51: =((1093-0.556*I40)*I50 - 0.24*(I38-I40)) / (1093+0.444*I38-I40) -> 0.001272000212
A53: Pw | B53: psia | C53: =(C43*C51)/(0.62198+C51) -> 0.09300163404 | D53: 0.09501222569 | E53: 0.09794897928 | F53: 0.09896186429 | G53: 0.09951507847 | I53: =(I43*I51)/(0.62198+I51) -> 0.02999282868
A55: Relative Humidity (RH) | C55: =C53/C46 -> 0.9302350804 | D55: 0.9503457259 | E55: 0.9797201689 | F55: 0.9898514014 | G55: 0.9953848443 | I55: =I53/I46 -> 0.29999883
A56: RH Error (used for solver) | I56: =ABS(I55-I12) -> 1.170002369e-06
A58: Water temp
A59: T | B59: degF | C59: =C13 -> 100 | D59: =D13 -> 100 | E59: =E13 -> 100 | F59: =F13 -> 100 | G59: =G13 -> 100 | I59: =I13 -> 100
B60: degR | C60: =+C59+459.67 -> 559.67 | D60: 559.67 | E60: 559.67 | F60: 559.67 | G60: 559.67 | I60: =+I59+459.67 -> 559.67
A61: Twb | B61: degF | C61: =C40 -> 34.24 | D61: =D40 -> 34.46 | E61: =E40 -> 34.78 | F61: =F40 -> 34.89 | G61: =G40 -> 34.95 | I61: =I40 -> 26.95130136
B62: degR | C62: =+C61+459.67 -> 493.91 | D62: 494.13 | E62: 494.45 | F62: 494.56 | G62: 494.62 | I62: =+I61+459.67 -> 486.6213014
A63: P | B63: inHG | C63: =C42 -> 29.921 | D63: =D42 -> 29.921 | E63: =E42 -> 29.921 | F63: =F42 -> 29.921 | G63: =G42 -> 29.921 | I63: =I42 -> 29.921
B64: psia | C64: =C63*0.491154152227 -> 14.69582339 | D64: 14.69582339 | E64: 14.69582339 | F64: 14.69582339 | G64: 14.69582339 | I64: =I63*0.491154152227 -> 14.69582339
B65: Pa | C65: =C63*3386.38866667 -> 101324.1353 | D65: 101324.1353 | E65: 101324.1353 | F65: 101324.1353 | G65: 101324.1353 | I65: =I63*3386.38866667 -> 101324.1353
A67: Pdb | B67: psia | C67: =EXP((-1.0440397*10^4)/C60-1.129465*10-2.7022355*10^(-2)*C60 + 1.289036*10^(-5)*C60*C60 -2.4780681*10^(-9)*C60*C60*C60 + 6.5459673*LN(C60)) -> 0.9503098728 | D67: 0.9503098728 | E67: 0.9503098728 | F67: 0.9503098728 | G67: 0.9503098728 | I67: =EXP((-1.0440397*10^4)/I60-1.129465*10-2.7022355*10^(-2)*I60 + 1.289036*10^(-5)*I60*I60 -2.4780681*10^(-9)*I60*I60*I60 + 6.5459673*LN(I60)) -> 0.9503098728
A68: Pwb | B68: psia | C68: =EXP((-1.0440397*10^4)/C62 -1.129465*10-2.7022355*10^(-2)*C62 + 1.289036*10^(-5)*C62*C62 -2.4780681*10^(-9)*C62*C62*C62 + 6.5459673*LN(C62)) -> 0.09699180274 | D68: 0.09784756068 | E68: 0.09910424246 | F68: 0.09953951756 | G68: 0.09977765349 | I68: =EXP((-1.0440397*10^4)/I62 -1.129465*10-2.7022355*10^(-2)*I62 + 1.289036*10^(-5)*I62*I62 -2.4780681*10^(-9)*I62*I62*I62 + 6.5459673*LN(I62)) -> 0.07213588924
A70: Ws | B70: lb/lb | C70: =0.62198*(C67/(C64-C67)) -> 0.04300121156 | D70: 0.04300121156 | E70: 0.04300121156 | F70: 0.04300121156 | G70: 0.04300121156 | I70: =0.62198*(I67/(I64-I67)) -> 0.04300121156
A71: W* | B71: lb/lb | C71: =0.62198*(C68/(C64-C68)) -> 0.004132314364 | D71: 0.004169018123 | E71: 0.004222925447 | F71: 0.004241599415 | G71: 0.004251816283 | I71: =0.62198*(I68/(I64-I68)) -> 0.0030681099
A72: W | B72: lb/lb | C72: =((1093-0.556*C61)*C71 - 0.24*(C59-C61)) / (1093+0.444*C59-C61) -> -0.01028359357 | D72: =((1093-0.556*D61)*D71 - 0.24*(D59-D61)) / (1093+0.444*D59-D61) -> -0.01020249567 | E72: -0.01008398548 | F72: -0.01004309616 | G72: -0.01002076008 | I72: =((1093-0.556*I61)*I71 - 0.24*(I59-I61)) / (1093+0.444*I59-I61) -> -0.01280943367
A74: Pw | B74: psia | C74: =(C64*C72)/(0.62198+C72) -> -0.2470602629 | D74: -0.2450794177 | E74: -0.2421857082 | F74: -0.2411875579 | G74: -0.2406423675 | I74: =(I64*I72)/(0.62198+I72) -> -0.3090188287
A76: RH | C76: =C74/C67 -> -0.2599786343 | D76: -0.257894214 | E76: -0.2548491973 | F76: -0.2537988554 | G76: -0.2532251578 | I76: =I74/I67 -> -0.3251769108
